fUSD/lending_fUSD_20240618
["ID","MTS","AMOUNT","RATE_DAILY","PERIOD"]
[329808662,1718685045662,-500.0,0.00021917,2]
[329808663,1718685045672,-846.1,0.00021917,2]
[329808664,1718685045682,-500.0,0.00021917,2]
[329808665,1718685045691,-1088.22,0.00021917,2]
[329808666,1718685045701,-500.0,0.00021917,2]
[329808667,1718685045710,-500.0,0.00021917,2]
[329808668,1718685045720,-500.0,0.00021917,2]
[329808669,1718685045729,-500.0,0.00021917,2]
[329808670,1718685045739,-614.58,0.00021917,2]
[329808671,1718685045748,-4445.57,0.00021917,2]
[329808672,1718685045757,-500.0,0.00021917,2]
[329808673,1718685045767,-1084.69,0.00021917,2]
[329808674,1718685045776,-500.0,0.00021917,2]
[329808675,1718685045786,-740.61,0.00021917,2]
[329808676,1718685045795,-3936.73,0.00021917,2]
[329808677,1718685045804,-500.0,0.00021917,2]
[329808678,1718685045816,-502.64336558,0.00021917,2]
[329808679,1718685045828,-819.1,0.00021917,2]
[329808680,1718685045838,-500.0,0.00021917,2]
[329808681,1718685045847,-500.0,0.00021917,2]
[329808682,1718685045856,-502.31450562,0.00021917,2]
[329808683,1718685045867,-500.0,0.00021917,2]
[329808684,1718685045877,-500.0,0.00021917,2]
[329808685,1718685045887,-12856.99,0.00021917,2]
[329808686,1718685045902,-310.02871006,0.00021917,2]
[329808687,1718685045911,-504.99932577,0.00021917,2]
[329808688,1718685045920,-500.0,0.00021917,2]
[329808689,1718685045929,-500.0,0.00021917,2]
[329808690,1718685045939,-514.17,0.00021917,2]
[329808691,1718685045948,-776.93,0.00021917,2]
[329808692,1718685045957,-500.0,0.00021917,2]
[329808693,1718685045967,-500.0,0.00021917,2]
[329808694,1718685045977,-549.91931165,0.00021917,2]
[329808695,1718685045988,-3410.16,0.00021917,2]
[329808696,1718685045998,-1301.75,0.00021917,2]
[329808697,1718685046020,-500.0,0.00021917,2]
[329808698,1718685046033,-500.0,0.00021917,2]
[329808699,1718685046045,-758.7,0.00021917,2]
[329808700,1718685046056,-2139.03,0.00021917,2]
[329808701,1718685046067,-500.0,0.00021917,2]
[329808702,1718685046079,-653.21,0.00021917,2]
[329808703,1718685046090,-849.38,0.00021917,2]
[329808704,1718685046101,-520.59835703,0.00021917,2]
[329808705,1718685046112,-1277.72,0.00021917,2]
[329808706,1718685046127,-500.0,0.00021917,2]
[329808707,1718685046138,-522.2772513,0.00021917,2]
[329808708,1718685046164,-500.0,0.00021917,2]
[329808709,1718685046174,-500.0,0.00021917,2]
[329808710,1718685046184,-500.0,0.00021917,2]
[329808711,1718685046194,-552.7,0.00021917,2]
[329808712,1718685046207,-2282.7,0.00021917,2]
[329808713,1718685046217,-500.0,0.00021917,2]
[329808714,1718685046228,-500.0,0.00021917,2]
[329808715,1718685046238,-514.6,0.00021917,2]
[329808716,1718685046249,-600.92,0.00021917,2]
[329808717,1718685046259,-1809.14,0.00021917,2]
[329808718,1718685046269,-529.08203544,0.00021917,2]
[329808719,1718685046278,-500.0,0.00021917,2]
[329808720,1718685046288,-408.064894,0.00021917,2]
[329808721,1718685046298,-900.3,0.00021917,2]
[329808722,1718685046308,-1411.91,0.00021917,2]
[329808723,1718685046317,-4337.47,0.00021917,2]
[329808724,1718685046326,-500.0,0.00021917,2]
[329808725,1718685046336,-595.7,0.00021917,2]
[329808727,1718685046346,-500.0,0.00021917,2]
[329808728,1718685046356,-5139.95,0.00021917,2]
[329808729,1718685046365,-500.0,0.00021917,2]
[329808730,1718685046375,-585.81656966,0.00021917,2]
[329808731,1718685046384,-500.0,0.00021917,2]
[329808732,1718685046403,-544.48842405,0.00021917,2]
[329808733,1718685046413,-3075.77,0.00021917,2]
[329808734,1718685046423,-21280.9,0.00021917,2]
[329808735,1718685046433,-616.95,0.00021917,2]
[329808736,1718685046443,-725.99,0.00021917,2]
[329808737,1718685046453,-3017.75,0.00021917,2]
[329808738,1718685046462,-3304.24,0.00021917,2]
[329808739,1718685046472,-1692.0,0.00021917,2]
[329808740,1718685046482,-500.0,0.00021917,2]
[329808741,1718685046492,-226.48056294,0.00021917,2]
[329808742,1718685046502,-500.0,0.00021917,2]
[329808743,1718685046512,-500.0,0.00021917,2]
[329808744,1718685046522,-3205.79,0.00021917,2]
[329808745,1718685046532,-853.19,0.00021917,2]
[329808746,1718685046541,-1214.57,0.00021917,2]
[329808747,1718685046551,-4807.88,0.00021917,2]
[329808748,1718685046560,-500.0,0.00021917,2]
[329808749,1718685046570,-522.98728476,0.00021917,2]
[329808750,1718685046579,-797.17,0.00021917,2]
[329808751,1718685046589,-500.0,0.00021917,2]
[329808752,1718685046599,-1055.87,0.00021917,2]
[329808753,1718685046608,-500.0,0.00021917,2]
[329808754,1718685046617,-500.0,0.00021917,2]
[329808755,1718685046628,-500.0,0.00021917,2]
[329808756,1718685046637,-500.0,0.00021917,2]
[329808757,1718685046656,-1020.85,0.00021917,2]
[329808758,1718685046666,-20171.67,0.00021917,2]
[329808759,1718685046676,-500.0,0.00021917,2]
[329808760,1718685046686,-18275.48,0.00021917,2]
[329808761,1718685046696,-500.0,0.00021917,2]
[329808762,1718685046705,-668.81,0.00021917,2]
[329808763,1718685046715,-3500.14,0.00021917,2]
[329808764,1718685046725,-500.0,0.00021917,2]
[329808765,1718685046735,-775.77,0.00021917,2]
[329808766,1718685046744,-888.88,0.00021917,2]
[329808767,1718685046755,-500.0,0.00021917,2]
[329808768,1718685046764,-500.0,0.00021917,2]
[329808769,1718685046774,-500.0,0.00021917,2]
[329808770,1718685046783,-1360.15,0.00021917,2]
[329808771,1718685046792,-1980.84,0.00021917,2]
[329808772,1718685046801,-614.3,0.00021917,2]
[329808773,1718685046810,-500.0,0.00021917,2]
[329808774,1718685046819,-1094.2,0.00021917,2]
[329808775,1718685046828,-535.74346744,0.00021917,2]
[329808776,1718685046838,-500.0,0.00021917,2]
[329808777,1718685046847,-1982.26,0.00021917,2]
[329808778,1718685046857,-500.0,0.00021917,2]
[329808779,1718685046867,-4358.06,0.00021917,2]
[329808780,1718685046876,-500.0,0.00021917,2]
[329808781,1718685046886,-500.0,0.00021917,2]
[329808782,1718685046900,-1162.23,0.00021917,2]
[329808783,1718685046910,-500.0,0.00021917,2]
[329808784,1718685046919,-2552.57464123,0.00021917,2]
[329808785,1718685047423,-3076.39535877,0.00021917,2]
[329808786,1718685047433,-500.0,0.00021917,2]
[329808787,1718685047443,-500.0,0.00021917,2]
[329808788,1718685047453,-500.0,0.00021917,2]
[329808789,1718685047463,-1227.75,0.00021917,2]
[329808790,1718685047473,-7749.03,0.00021917,2]
[329808791,1718685047483,-832.55,0.00021917,2]
[329808792,1718685047493,-624.60445627,0.00021917,2]
[329808793,1718685047503,-916.06,0.00021917,2]
[329808794,1718685047512,-577.06,0.00021917,2]
[329808795,1718685047523,-500.0,0.00021917,2]
[329808796,1718685047533,-500.0,0.00021917,2]
[329808797,1718685047543,-904.12,0.00021917,2]
[329808798,1718685047552,-500.0,0.00021917,2]
[329808799,1718685047562,-2500.26,0.00021917,2]
[329808800,1718685047572,-1264.89,0.00021917,2]
[329808801,1718685047582,-500.0,0.00021917,2]
[329808802,1718685047591,-1973.27,0.00021917,2]
[329808803,1718685047601,-2506.18,0.00021917,2]
[329808804,1718685047610,-500.0,0.00021917,2]
[329808805,1718685047620,-500.0,0.00021917,2]
[329808806,1718685047629,-500.0,0.00021917,2]
[329808807,1718685047638,-1676.78,0.00021917,2]
[329808808,1718685047653,-500.0,0.00021917,2]
[329808809,1718685047663,-745.74,0.00021917,2]
[329808810,1718685047672,-1288.51,0.00021917,2]
[329808811,1718685047681,-500.0,0.00021917,2]
[329808812,1718685047690,-500.0,0.00021917,2]
[329808813,1718685047699,-1447.66,0.00021917,2]
[329808814,1718685047708,-500.0,0.00021917,2]
[329808815,1718685047717,-669.05,0.00021917,2]
[329808816,1718685047727,-1748.8,0.00021917,2]
[329808817,1718685047738,-563.77,0.00021917,2]
[329808818,1718685047748,-517.01,0.00021917,2]
[329808819,1718685047758,-500.0,0.00021917,2]
[329808820,1718685047768,-4817.07,0.00021917,2]
[329808821,1718685047778,-500.0,0.00021917,2]
[329808822,1718685047787,-1410.38,0.00021917,2]
[329808823,1718685047797,-500.0,0.00021917,2]
[329808824,1718685047807,-500.0,0.00021917,2]
[329808825,1718685047816,-500.0,0.00021917,2]
[329808826,1718685047826,-500.0,0.00021917,2]
[329808827,1718685047835,-805.18,0.00021917,2]
[329808828,1718685047845,-500.0,0.00021917,2]
[329808829,1718685047855,-1451.07,0.00021917,2]
[329808830,1718685047865,-900.44,0.00021917,2]
[329808831,1718685047880,-500.0,0.00021917,2]
[329808832,1718685047891,-500.0,0.00021917,2]
[329808833,1718685047902,-500.0,0.00021917,2]
[329808834,1718685047916,-899.17,0.00021917,2]
[329808835,1718685047927,-2386.57,0.00021917,2]
[329808836,1718685047937,-511.5409742,0.00021917,2]
[329808837,1718685047947,-514.5779109,0.00021917,2]
[329808838,1718685048006,-1303.0320891,0.00021917,2]
[329808839,1718685048015,-500.0,0.00021917,2]
[329808840,1718685048025,-500.0,0.00021917,2]
[329808841,1718685048035,-943.45,0.00021917,2]
[329808842,1718685048044,-500.0,0.00021917,2]
[329808843,1718685048054,-2197.8,0.00021917,2]
[329808844,1718685048064,-571.36,0.00021917,2]
[329808845,1718685048073,-504.63,0.00021917,2]
[329808846,1718685048083,-1181.51,0.00021917,2]
[329808847,1718685048092,-1081.28,0.00021917,2]
[329808848,1718685048102,-500.0,0.00021917,2]
[329808849,1718685048112,-3245.3,0.00021917,2]
[329808850,1718685048125,-500.0,0.00021917,2]
[329808851,1718685048136,-500.0,0.00021917,2]
[329808852,1718685048149,-523.12,0.00021917,2]
[329808853,1718685048158,-2592.54,0.00021917,2]
[329808854,1718685048170,-4159.49,0.00021917,2]
[329808855,1718685048180,-1356.15,0.00021917,2]
[329808857,1718685048190,-1186.76,0.00021917,2]
[329808858,1718685048200,-874.45,0.00021917,2]
[329808859,1718685048211,-500.0,0.00021917,2]
[329808860,1718685048220,-4812.33,0.00021917,2]
[329808861,1718685048230,-500.0,0.00021917,2]
[329808862,1718685048240,-500.0,0.00021917,2]
[329808863,1718685048250,-500.0,0.00021917,2]
[329808864,1718685048259,-851.33,0.00021917,2]
[329808865,1718685048269,-774.71,0.00021917,2]
[329808866,1718685048279,-1045.22,0.00021917,2]
[329808867,1718685048289,-857.92,0.00021917,2]
[329808868,1718685048299,-4532.14,0.00021917,2]
[329808869,1718685048308,-6460.79,0.00021917,2]
[329808870,1718685048318,-1000.61,0.00021917,2]
[329808871,1718685048328,-1134.54,0.00021917,2]
[329808872,1718685048337,-986.03,0.00021917,2]
[329808873,1718685048347,-2001.01,0.00021917,2]
[329808874,1718685048357,-549.32,0.00021917,2]
[329808875,1718685048367,-1439.46,0.00021917,2]
[329808876,1718685048376,-2262.3,0.00021917,2]
[329808877,1718685048386,-500.0,0.00021917,2]
[329808878,1718685048399,-2512.37,0.00021917,2]
[329808879,1718685048408,-500.0,0.00021917,2]
[329808880,1718685048418,-514.47,0.00021917,2]
[329808881,1718685048428,-543.47,0.00021917,2]
[329808882,1718685048439,-500.0,0.00021917,2]
[329808883,1718685048449,-2062.78,0.00021917,2]
[329808884,1718685048459,-908.92,0.00021917,2]
[329808885,1718685048469,-1573.54,0.00021917,2]
[329808886,1718685048478,-500.0,0.00021917,2]
[329808887,1718685048488,-4055.7,0.00021917,2]
[329808888,1718685048716,-500.0,0.00021917,2]
[329808889,1718685048726,-1122.36,0.00021917,2]
[329808890,1718685048735,-637.71,0.00021917,2]
[329808891,1718685048744,-626.3,0.00021917,2]
[329808892,1718685048754,-500.0,0.00021917,2]
[329808893,1718685048763,-8628.25,0.00021917,2]
[329808894,1718685048773,-2096.01,0.00021917,2]
[329808895,1718685048782,-500.0,0.00021917,2]
[329808896,1718685048791,-500.0,0.00021917,2]
[329808897,1718685048801,-500.0,0.00021917,2]
[329808898,1718685048810,-1323.56,0.00021917,2]
[329808899,1718685048819,-652.25,0.00021917,2]
[329808900,1718685048829,-8402.56,0.00021917,2]
[329808901,1718685048839,-500.0,0.00021917,2]
[329808902,1718685048848,-500.0,0.00021917,2]
[329808903,1718685048857,-3147.55,0.00021917,2]
[329808904,1718685048867,-641.58,0.00021917,2]
[329808905,1718685048877,-500.0,0.00021917,2]
[329808906,1718685048891,-500.0,0.00021917,2]
[329808907,1718685048903,-4075.18,0.00021917,2]
[329808908,1718685048912,-1911.35,0.00021917,2]
[329808909,1718685048922,-2832.5,0.00021917,2]
[329808910,1718685048931,-816.01,0.00021917,2]
[329808911,1718685048941,-681.19,0.00021917,2]
[329808912,1718685048950,-4236.0,0.00021917,2]
[329808913,1718685048960,-755.75,0.00021917,2]
[329808914,1718685048969,-2037.38,0.00021917,2]
[329808915,1718685048979,-500.0,0.00021917,2]
[329808916,1718685048989,-500.0,0.00021917,2]
[329808917,1718685048998,-2129.73,0.00021917,2]
[329808918,1718685049007,-7576.4,0.00021917,2]
[329808919,1718685049017,-500.0,0.00021917,2]
[329808920,1718685049026,-500.0,0.00021917,2]
[329808921,1718685049035,-1846.7,0.00021917,2]
[329808922,1718685049045,-696.0,0.00021917,2]
[329808923,1718685049055,-500.0,0.00021917,2]
[329808924,1718685049064,-2960.57,0.00021917,2]
[329808925,1718685049073,-700.8,0.00021917,2]
[329808926,1718685049083,-500.0,0.00021917,2]
[329808927,1718685049092,-1255.02,0.00021917,2]
[329808928,1718685049102,-500.0,0.00021917,2]
[329808929,1718685049112,-2681.94,0.00021917,2]
[329808930,1718685049124,-500.0,0.00021917,2]
[329808931,1718685049136,-2084.29,0.00021917,2]
[329808932,1718685049149,-3668.82,0.00021917,2]
[329808933,1718685049158,-500.0,0.00021917,2]
[329808934,1718685049167,-250.0,0.00021917,2]
[329808935,1718685049176,-2018.83,0.00021917,2]
[329808936,1718685049186,-500.0,0.00021917,2]
[329808937,1718685049195,-783.16,0.00021917,2]
[329808938,1718685049205,-500.0,0.00021917,2]
[329808939,1718685049215,-1452.76,0.00021917,2]
[329808940,1718685049225,-1067.47,0.00021917,2]
[329808941,1718685049234,-500.0,0.00021917,2]
[329808942,1718685049245,-1743.66,0.00021917,2]
[329808943,1718685049254,-6307.82,0.00021917,2]
[329808944,1718685049264,-198.4829993,0.00021917,2]
[329808945,1718685049273,-4030.22,0.00021917,2]
[329808946,1718685049282,-500.0,0.00021917,2]
[329808947,1718685049292,-2300.82322338,0.00021917,2]
[329808948,1718685049306,-8938.42677662,0.00021917,2]
[329808949,1718685049315,-500.0,0.00021917,2]
[329808950,1718685049325,-2066.71,0.00021917,2]
[329808951,1718685049334,-500.0,0.00021917,2]
[329808952,1718685049343,-500.0,0.00021917,2]
[329808953,1718685049353,-880.59,0.00021917,2]
[329808954,1718685049362,-500.0,0.00021917,2]
[329808955,1718685049371,-825.26,0.00021917,2]
[329808956,1718685049380,-3291.4,0.00021917,2]
[329808957,1718685049389,-500.0,0.00021917,2]
[329808958,1718685049403,-500.0,0.00021917,2]
[329808959,1718685049412,-776.38,0.00021917,2]
[329808960,1718685049421,-487.8832646,0.00021917,2]
[329808961,1718685049432,-12.1167354,0.00021917,2]
[329808962,1718685049441,-637.94517994,0.00021917,2]
[329808963,1718685050028,-605.50432414,0.00021917,2]
[329808964,1718685050069,-644.05,0.00021917,2]
[329808965,1718685050122,-196.83049592,0.00021917,2]
[329808966,1718685050132,-500.0,0.00021917,2]
[329808967,1718685050148,-1358.72515467,0.00021917,2]
[329808968,1718685050160,-655.43484533,0.00021917,2]
[329808969,1718685050171,-500.0,0.00021917,2]
[329808970,1718685050180,-1191.01062967,0.00021917,2]
[329808971,1718685050273,-278.97054483,0.00021917,2]
[329808972,1718685050285,-769.05650803,0.00021917,2]
[329808973,1718685050296,-84.71231747,0.00021917,2]
[329808974,1718685050306,-332.79668258,0.00021917,2]
[329808975,1718685050318,-167.20331742,0.00021917,2]
[329808976,1718685050327,-377.47741254,0.00021917,2]
[329808977,1718685050339,-122.52258746,0.00021917,2]
[329808978,1718685050348,-172.60306552,0.00021917,2]
[329808979,1718685050360,-353.68471301,0.00021917,2]
[329808980,1718685050369,-147.82109097,0.00021917,2]
[329808981,1718685050473,-367.14890903,0.00021917,2]
[329808982,1718685050483,-500.0,0.00021917,2]
[329808983,1718685050492,-7.03830282,0.00021917,2]
[329808984,1718685050503,-492.96169718,0.00021917,2]
[329808985,1718685050513,-500.0,0.00021917,2]
[329808986,1718685050523,-500.0,0.00021917,2]
[329808987,1718685050533,-596.90300409,0.00021917,2]
[329808988,1718685050545,-1900.443,0.00021917,2]
[329808989,1718685050557,-1238.72399591,0.00021917,2]
[329808990,1718685050566,-3600.54,0.00021917,2]
[329808991,1718685050575,-1198.46044196,0.00021917,2]
[329808992,1718685050586,-2674.87955804,0.00021917,2]
[329808993,1718685050595,-2450.59,0.00021917,2]
[329808994,1718685050605,-943.04,0.00021917,2]
[329808995,1718685050614,-500.0,0.00021917,2]
[329808996,1718685050624,-606.83,0.00021917,2]
[329808997,1718685050634,-500.0,0.00021917,2]
[329808998,1718685050646,-500.0,0.00021917,2]
[329808999,1718685050656,-500.0,0.00021917,2]
[329809000,1718685050665,-2087.12,0.00021917,2]
[329809001,1718685050674,-500.0,0.00021917,2]
[329809002,1718685050683,-500.0,0.00021917,2]
[329809003,1718685050691,-1650.64348062,0.00021917,2]
[329809004,1718685050703,-2774.37651938,0.00021917,2]
[329809005,1718685050713,-552.04,0.00021917,2]
[329809006,1718685050723,-706.63,0.00021917,2]
[329809007,1718685050733,-500.0,0.00021917,2]
[329809008,1718685050743,-5137.84624996,0.00021917,2]
[329809009,1718685050773,-771.12580275,0.00021917,2]
[329809010,1718685050786,-967.0,0.00021917,2]
[329809011,1718685050798,-8349.33794729,0.00021917,2]
[329809012,1718685050808,-20371.78,0.00021917,2]
[329809013,1718685050817,-1104.71,0.00021917,2]
[329809014,1718685050828,-500.0,0.00021917,2]
[329809015,1718685050837,-1717.28,0.00021917,2]
[329809016,1718685050847,-500.0,0.00021917,2]
[329809017,1718685050857,-500.0,0.00021917,2]
[329809018,1718685050867,-500.0,0.00021917,2]
[329809019,1718685050877,-647.64,0.00021917,2]
[329809020,1718685050887,-500.0,0.00021917,2]
[329809021,1718685050905,-500.0,0.00021917,2]
[329809022,1718685050915,-500.0,0.00021917,2]
[329809023,1718685050924,-1653.92,0.00021917,2]
[329809024,1718685050934,-7258.56,0.00021917,2]
[329809025,1718685050944,-4697.0,0.00021917,2]
[329809026,1718685050954,-1824.4,0.00021917,2]
[329809027,1718685050964,-504.47,0.00021917,2]
[329809028,1718685050974,-500.0,0.00021917,2]
[329809029,1718685050984,-500.0,0.00021917,2]
[329809030,1718685050997,-500.0,0.00021917,2]
[329809031,1718685051007,-500.0,0.00021917,2]
[329809032,1718685051018,-606.56,0.00021918,2]
[329809033,1718685051028,-165.22,0.00021918,2]
[329809034,1718685051038,-2374.304338,0.00021918,2]
[329809035,1718685051048,-1652.16,0.0002192,2]
[329809036,1718685051064,-1652.16,0.0002192,2]
[329809037,1718685051074,-1652.16,0.0002192,2]
[329809038,1718685051084,-1652.16,0.0002192,2]
[329809039,1718685051093,-1652.16,0.0002192,2]
[329809040,1718685051103,-791.61101714,0.00022,2]
[329809041,1718685051112,-151.0,0.00022035,2]
[329809042,1718685051124,-2085.80821084,0.00022079,2]
[329809043,1718685051135,-219.9,0.00022082,3]
[329809044,1718685051152,-1305.74858009,0.00022091,2]
[329809045,1718685051162,-4387.88061554,0.00022091,2]
[329809046,1718685051172,-239.0,0.000221,2]
[329809047,1718685051181,-210.0,0.000221,2]
[329809048,1718685051190,-500.0,0.00022142,2]
[329809049,1718685051199,-500.0,0.00022142,2]
[329809050,1718685051208,-500.0,0.00022142,2]
[329809051,1718685051217,-500.0,0.00022142,2]
[329809052,1718685051226,-500.0,0.00022142,2]
[329809053,1718685051235,-500.0,0.00022142,2]
[329809054,1718685051244,-500.0,0.00022142,2]
[329809055,1718685051252,-500.0,0.00022142,2]
[329809056,1718685051261,-500.0,0.00022142,2]
[329809057,1718685051270,-500.0,0.00022142,2]
[329809058,1718685051279,-500.0,0.00022142,2]
[329809059,1718685051289,-500.0,0.00022142,2]
[329809060,1718685051298,-500.0,0.00022142,2]
[329809061,1718685051307,-500.0,0.00022142,2]
[329809062,1718685051316,-500.0,0.00022142,2]
[329809063,1718685051325,-500.0,0.00022142,2]
[329809064,1718685051336,-500.0,0.00022142,2]
[329809065,1718685051345,-500.0,0.00022142,2]
[329809066,1718685051354,-506.38,0.00022142,2]
[329809067,1718685051364,-500.0,0.00022142,2]
[329809068,1718685051373,-500.0,0.00022142,2]
[329809069,1718685051382,-500.0,0.00022142,2]
[329809070,1718685051391,-500.0,0.00022142,2]
[329809071,1718685051406,-500.0,0.00022142,2]
[329809072,1718685051415,-500.0,0.00022142,2]
[329809073,1718685051424,-500.0,0.00022142,2]
[329809074,1718685051433,-500.0,0.00022142,2]
[329809075,1718685051443,-500.0,0.00022142,2]
[329809076,1718685051452,-500.0,0.00022142,2]
[329809077,1718685051461,-500.0,0.00022142,2]
[329809078,1718685051470,-500.0,0.00022142,2]
[329809079,1718685051479,-458.65,0.00022142,2]
[329809080,1718685051488,-500.0,0.00022142,2]
[329809081,1718685051497,-500.0,0.00022142,2]
[329809082,1718685051506,-500.0,0.00022142,2]
[329809083,1718685051515,-500.0,0.00022142,2]
[329809084,1718685051525,-500.0,0.00022142,2]
[329809085,1718685051534,-500.0,0.00022142,2]
[329809086,1718685051543,-150.0,0.00022176,2]
[329809087,1718685051552,-182.05577,0.00022188,2]
[329809088,1718685051562,-2374.304338,0.00022188,2]
[329809089,1718685051570,-1000.0,0.0002219,2]
[329809090,1718685051579,-163.63170882,0.00022191,3]
[329809091,1718685051588,-347.61168193,0.00022191,3]
[329809092,1718685051597,-500.0,0.00022191,3]
[329809093,1718685051606,-210.34101425,0.00022191,3]
[329809094,1718685051616,-500.0,0.00022191,3]
[329809095,1718685051625,-500.0,0.00022191,3]
[329809096,1718685051634,-342.26046422,0.00022191,3]
[329809097,1718685051648,-500.0,0.00022191,3]
[329809098,1718685051658,-500.0,0.00022191,3]
[329809099,1718685051667,-525.68019861,0.00022191,2]
[329809100,1718685051675,-500.0,0.00022191,3]
[329809101,1718685051685,-500.0,0.00022191,3]
[329809102,1718685051695,-524.11382542,0.00022191,3]
[329809103,1718685051705,-500.0,0.00022191,3]
[329809104,1718685051714,-500.0,0.00022191,3]
[329809105,1718685051724,-500.0,0.00022191,3]
[329809106,1718685051733,-419.30904646,0.00022191,3]
[329809107,1718685051747,-90.79498438,0.00022191,3]
[329809108,1718685051757,-518.94,0.00022191,3]
[329809109,1718685051768,-500.0,0.00022191,3]
[329809110,1718685051777,-500.0,0.00022191,3]
[329809111,1718685051788,-500.0,0.00022191,3]
[329809112,1718685051798,-500.0,0.00022191,3]
[329809113,1718685051809,-500.0,0.00022191,3]
[329809114,1718685051818,-113.78139633,0.00022191,3]
[329809127,1718685224261,380995.04024286,0.00014,2]
[329809128,1718685245553,28561.50697631,0.000118,2]
[329809129,1718685271849,3932.4905676,0.0001298,2]
[329809132,1718685398425,1651.0,0.0001,2]
[329809214,1718686232407,-2140.34782153,0.00014998,2]
[329809215,1718686232416,-13301.98158777,0.00014999,2]
[329809216,1718686232426,-117704.56244003,0.00015,2]
[329809217,1718686232437,-549.3079707,0.00015,2]
[329809218,1718686232448,-47496.69041491,0.00015,2]
[329809219,1718686232457,-248.0879,0.0001686,2]
[329809220,1718686232467,-33305.96856624,0.00017259,2]
[329809221,1718686232476,-536.61,0.00017559,2]
[329809222,1718686232486,-2540.75,0.00017808,2]
[329809223,1718686232495,-150.0,0.00019151,2]
[329809224,1718686232504,-466.62,0.00019151,6]
[329809225,1718686232515,-193.82,0.00019172,2]
[329809226,1718686232526,-4822.16,0.0001931,2]
[329809227,1718686232537,-152.0,0.00019318,3]
[329809228,1718686232546,-250.0,0.00019375,2]
[329809229,1718686232556,-306.99,0.00019419,2]
[329809230,1718686232568,-262.18,0.00019436,2]
[329809231,1718686232577,-499.99,0.00019452,2]
[329809232,1718686232587,-388.94807077,0.000195,2]
[329809233,1718686232596,-320.0,0.000195,2]
[329809234,1718686232606,-183.45,0.00019529,2]
[329809235,1718686232615,-1240.34,0.00019583,2]
[329809236,1718686232625,-169.11,0.0001965,2]
[329809237,1718686232634,-458.85577773,0.00019823,2]
[329809238,1718686232646,-77.75422227,0.00019823,2]
[329809239,1718686232655,-226.85225071,0.000201,2]
[329809240,1718686232665,-168.34,0.00020344,2]
[329809241,1718686232675,-1000.0,0.00020573,2]
[329809242,1718686232684,-150.0,0.00020731,2]
[329809243,1718686232693,-34.92253807,0.00020772,2]
[329809244,1718686232705,-1094.5119612,0.00020772,2]
[329809245,1718686238902,-141.56550073,0.00020772,2]
[329809246,1718686238912,-812.516,0.00020772,2]
[329809247,1718686238922,-165.078,0.00020772,2]
[329809248,1718686238931,-444.39,0.00020772,2]
[329809249,1718686238941,-1304.0,0.00020772,2]
[329809250,1718686238950,-833.07354683,0.00020772,2]
[329809251,1718686238963,-408.7826365,0.00020772,2]
[329809252,1718686238974,-932.56781667,0.00020772,2]
[329809253,1718686238984,-3840.192,0.00020772,2]
[329809254,1718686238993,-150.0,0.00020772,2]
[329809255,1718686239003,-150.672,0.00020772,2]
[329809256,1718686239012,-2947.00136152,0.00020772,2]
[329809266,1718686240240,-5421.04551659,0.00020772,2]
[329809267,1718686240252,-825.632,0.00020772,2]